Cogmind - Beta 10.2 @@@ ROGUE MODE // 2021.06.24 @ 08:53:03 Player: CreepyD Result: Destroyed by S-10 Pest with Light Assault Rifle Performance ------------- Evolutions (1) 500 Regions Visited (2) 400 Robots Destroyed (9) 45 Value Destroyed (127) 127 Prototype IDs (0) 0 Alien Tech Used (0) 0 Bonus (0) 0 TOTAL SCORE: 1072 Bonus ------- None Cogmind --------- Core Integrity 0/400 Matter 267/300 Energy 100/100 System Corruption 0% Temperature Cool (12) Movement Core (350) Ox6 Location -9/Materials Parts ------- > --- POWER (1) -------- (None) > --- PROPULSION (4) --- (None) > --- UTILITY (2) ------ Large Storage Unit > --- WEAPON (2) ------- Scythe Scythe > --- INVENTORY (10) --- Ion Engine ECM Suite ECM Suite Light Assault Rifle Scythe Peak State ------------ > --- POWER ------------ Ion Engine > --- PROPULSION ------- Compact Wheel Compact Wheel Compact Wheel > --- UTILITY ---------- Large Storage Unit Light Armor Plating > --- WEAPON ----------- Scythe Scythe > --- INVENTORY -------- Ion Engine ECM Suite ECM Suite Light Assault Rifle Scythe Scythe [Rating: 13] Favorites ----------- Power Light Ion Engine Engine Light Ion Engine Propulsion Compact Wheel Wheel Compact Wheel Utility Large Storage Unit Device Terrain Scanner Storage Large Storage Unit Protection Light Armor Plating Weapon Mining Laser Ballistic Gun Light Assault Rifle Special Weapon Mining Laser Slashing Weapon Scythe Build | -11 -10 -9 ------- Run | Scr Mat Mat Slots Evolved 2 | . . 2 Power . | . . . Propulsion 2 | . . 2 Utility . | . . . Weapon . | . . . Parts Attached 15 | 4 6 5 Power 2 | 1 1 . Engine 2 | 1 1 . Core . | . . . Reactor . | . . . Propulsion 3 | 2 . 1 Treads . | . . . Leg . | . . . Wheel 3 | 2 . 1 Hover . | . . . Flight . | . . . Utility 4 | 1 3 . Device 1 | . 1 . Storage 2 | 1 1 . Processor . | . . . Hackware . | . . . Protection 1 | . 1 . Artifact . | . . . Weapon 6 | . 2 4 Energy Gun . | . . . Energy Cannon . | . . . Ballistic Gun 1 | . 1 . Ballistic Cannon . | . . . Launcher . | . . . Special Weapon 1 | . 1 . Impact Weapon . | . . . Slashing Weapon 4 | . . 4 Piercing Weapon . | . . . Special Melee Weapon . | . . . Unidentified Prototypes . | . . . Parts Lost 7 | . 1 6 Power 1 | . . 1 Propulsion 3 | . . 3 Utility 1 | . . 1 Weapon 2 | . 1 1 Highest Loss Streak 6 | . 1 6 Average Slot Usage (%) 76 | . 79 73 Engine 12 | . 14 9 Wheel 27 | . 28 27 Storage 12 | . 14 11 Protection 9 | . 9 9 Ballistic Gun 3 | . 2 5 Special Weapon 5 | . 10 . Slashing Weapon 4 | . . 10 Naked Turns . | . . . Heaviest Build 28 | 7 25 28 Greatest Support 48 | 32 32 48 Greatest Overweight (x) 6 | . . 6 Average Overweight (x) . | . . . Largest Inventory Capacity 12 | 6 12 10 Average Capacity 9 | 5 8 10 Most Carried 6 | 3 5 6 Average Carried 3 | 1 2 4 Final Capacity 10 | 6 10 10 Final Carried 5 | 1 4 5 Class Distribution -------------------- 100% | Mutant Dominant Class ---------------- Mutant | -10/Materials Mutant | -9/Materials Resources | -11 -10 -9 ----------- Run | Scr Mat Mat Matter Collected 261 | 180 63 18 Remotely . | . . . Salvage Created 192 | . 63 129 Parts 11 | . 5 6 Haulers Intercepted 1 | . 1 . Recyclers Shooed . | . . . Parts Field Recycled . | . . . Retrieved Matter . | . . . Parts Self-Destructed . | . . . Prevented . | . . . Kills | -11 -10 -9 ------- Run | Scr Mat Mat Combat Hostiles Destroyed 6 | . 3 3 Melee 4 | . 1 3 Guns 1 | . 1 . Cannons 1 | . 1 . Classes Destroyed 5 | . 2 3 Worker 1 | . . 1 Hauler 1 | . 1 . Operator 1 | . . 1 Swarmer 4 | . 3 1 Grunt 2 | . . 2 Best Kill Streak 3 | . 3 3 Combat Bots Only 3 | . 3 3 Max Kills in Single Turn 1 | . 1 1 Gunslinging . | . . . Exploded . | . . . Melee 1 | . 1 1 Uniques/NPCs Destroyed . | . . . Combat | -11 -10 -9 -------- Run | Scr Mat Mat Damage Taken 1070 | . 207 863 Core 461 | . 54 407 Absorbed by Shields . | . . . Core Remaining (%) 89 | 100 78 . Volleys Fired 17 | . 7 10 Largest 1 | . 1 1 Hottest 100 | . 100 20 Shots Fired 17 | . 7 10 Gun 13 | . 3 10 Cannon . | . . . Launcher . | . . . Special 4 | . 4 . Kinetic 13 | . 3 10 Thermal 4 | . 4 . Explosive . | . . . Electromagnetic . | . . . Robot Hit Streak 3 | . 3 3 Robot Miss Streak 3 | . 3 3 Penetration Max . | . . . Secondary Targets . | . . . Shots Hit Robots 18 | . 4 14 Core Hits 13 | . 6 7 Critical Hits . | . . . Critical Kills . | . . . Critical Parts Destroyed . | . . . Melee Attacks 18 | . . 18 Impact . | . . . Slashing 18 | . . 18 Piercing . | . . . Sneak Attacks 1 | . . 1 Combat Hostiles . | . . . Follow-up Attacks 2 | . . 2 Damage Inflicted 536 | . 114 422 Guns 58 | . 9 49 Cannons . | . . . Explosions . | . . . Melee 373 | . . 373 Ramming 33 | . 33 . Kinetic 58 | . 9 49 Thermal 72 | . 72 . Explosive . | . . . Electromagnetic . | . . . Impact . | . . . Slashing 373 | . . 373 Piercing . | . . . Highest Corruption . | . . . Average Corruption . | . . . Corruption Purged . | . . . Overload Shots . | . . . Overflow Damage 103 | . 4 99 Projectiles 4 | . 4 . Explosions . | . . . Melee 99 | . . 99 Knockbacks . | . . . Impact . | . . . Kinetic . | . . . Secondary . | . . . Self-Inflicted Damage 14 | . 14 . Shots . | . . . Rammed 10 | . 10 . Targets Rammed 10 | . 10 . Kicked . | . . . Crushed . | . . . Highest Temperature 113 | . 113 1 Average Temperature 44 | . 46 1 Received Heat Transfer 276 | . . 276 Siege Activations . | . . . Robots Corrupted . | . . . Combat Hostiles . | . . . Parts Fried . | . . . Impact Corruptions . | . . . Robots Melted . | . . . Combat Hostiles . | . . . Parts Melted . | . . . Heat Transferred 150 | . 150 . Parts Sabotaged . | . . . Parts Stolen . | . . . Parts Stripped . | . . . Power Chain Reactions . | . . . Missiles Intercepted . | . . . Alert | -11 -10 -9 ------- Run | Scr Mat Mat Peak Influence 154 | . 82 154 Initial 34 | . . 34 Average 55 | . 30 97 Maximum Alert Level . | . . . Low Security (%) 100 | 100 100 100 Level 1 . | . . . Level 2 . | . . . Level 3 . | . . . Level 4 . | . . . Level 5 . | . . . High Security . | . . . Max Security . | . . . Squads Dispatched 1 | . . 1 Investigation . | . . . Extermination . | . . . Reinforcement 1 | . . 1 Assault . | . . . Garrison . | . . . Intercept . | . . . Construction Impeded . | . . . Haulers Reinforced . | . . . Stealth | -11 -10 -9 --------- Run | Scr Mat Mat Distress Signals 2 | . . 2 Communications Jammed . | . . . Distress Signals . | . . . Times Spotted 20 | . 4 16 Peak Tracking Total 10 | . 3 10 Tactical Retreats 1 | . . 1 Traps | -11 -10 -9 ------- Run | Scr Mat Mat Traps Triggered . | . . . Indirectly . | . . . Trap Hack Attempts . | . . . Triggered . | . . . Disarmed . | . . . Reprogrammed . | . . . Reused . | . . . Traps Extracted . | . . . Installed . | . . . Triggered . | . . . Machines | -11 -10 -9 ---------- Run | Scr Mat Mat Machines Disabled . | . . . Max in Single Turn . | . . . Machines Sabotaged . | . . . Garrisons Compromised . | . . . Overloaded Fab Kills . | . . . Fab Network Shutdowns . | . . . Hacking | -11 -10 -9 --------- Run | Scr Mat Mat Machines Accessed 1 | . . 1 Terminals 1 | . . 1 Fabricators . | . . . Repair Stations . | . . . Recycling Units . | . . . Scanalyzers . | . . . Garrison Access . | . . . Total Hacks 2 | . . 2 Successful 1 | . . 1 Failed 1 | . . 1 Catastrophic 1 | . . 1 Database Lockouts . | . . . Manual 1 | . . 1 Terminals 2 | . . 2 Fabricators . | . . . Repair Stations . | . . . Recycling Units . | . . . Scanalyzers . | . . . Garrison Access . | . . . Terminal Hacks 1 | . . 1 Zone Layout 1 | . . 1 Fabricator Hacks . | . . . Repair Station Hacks . | . . . Recycling Unit Hacks . | . . . Scanalyzer . | . . . Garrison Access Hacks . | . . . Unauthorized Hacks . | . . . Terminals . | . . . Fabricators . | . . . Repair Stations . | . . . Recycling Units . | . . . Scanalyzers . | . . . Garrison Access . | . . . Data Cores Recovered . | . . . Used . | . . . Hacking Detections 1 | . . 1 Full Trace Events . | . . . Feedback Events . | . . . Feedback Blocked . | . . . Robot Schematics Acquired . | . . . Robots Built . | . . . Matter . | . . . Time . | . . . Total Robot Build Rating . | . . . Part Schematics Acquired . | . . . Parts Built . | . . . Matter . | . . . Time . | . . . Total Part Build Rating . | . . . Parts Repaired . | . . . Time . | . . . Parts Recycled . | . . . Recycled Matter . | . . . Retrieved Matter . | . . . Retrieved Components . | . . . Parts Scanalyzed . | . . . Part Schematics Acquired . | . . . Parts Damaged . | . . . Bothacking | -11 -10 -9 ------------ Run | Scr Mat Mat Used RIF Installer . | . . . Robots Hacked . | . . . Non-combat . | . . . Combat . | . . . Robot Hacks Applied . | . . . Relay Couplers Released . | . . . Robots Rewired . | . . . Allies Hacked . | . . . Hacks Repelled . | . . . Allies | -11 -10 -9 -------- Run | Scr Mat Mat Total Allies . | . . . Largest Group . | . . . Highest-Rated Group . | . . . Highest-Rated Ally . | . . . Total Orders . | . . . Ally Attacks . | . . . Total Damage . | . . . Kills . | . . . Allies Corrupted . | . . . Allies Melted . | . . . Intel | -11 -10 -9 ------- Run | Scr Mat Mat Robot Analysis Total . | . . . Derelict Logs Recovered . | . . . Drone Launches . | . . . Drone Recoveries . | . . . Exploration | -11 -10 -9 ------------- Run | Scr Mat Mat Turns Passed 581 | 29 325 227 Spaces Moved 410 | 25 265 120 Core 10 | 8 . 2 Treads . | . . . Legs . | . . . Wheels 400 | 17 265 118 Hover . | . . . Flight . | . . . Fastest Speed 50 | 50 100 100 Average Speed 100 | 84 100 104 Slowest Speed 350 | 100 100 350 Overloaded Moves . | . . . Propulsion Burnouts . | . . . Robots Hopped . | . . . Cave-ins Triggered . | . . . Exploration Rate (%) 17 | 3 37 11 Regions Visited 2 Branch Regions . Pre-discovered Areas . | . . . Known Exits Taken . | . . . Unknown Exits Taken 2 | 1 1 . Scrap Searched . | . . . Spaces Dug . | . . . Terrain Destroyed . | . . . Melee . | . . . Projectile . | . . . AOE . | . . . Terrain Rammed . | . . . Walls Destroyed . | . . . Machines Disabled . | . . . Actions | -11 -10 -9 --------- Run | Scr Mat Mat Total 532 | 33 311 188 Wait 45 | . 12 33 Move 408 | 24 264 120 Hop . | . . . Pick Up 18 | 5 9 4 Fast Attach . | . . . Attach 12 | 4 5 3 Detach . | . . . Swap 3 | . 1 2 Drop 3 | . 3 . Fire 17 | . 7 10 Melee 16 | . . 16 Ram 10 | . 10 . Kick . | . . . Crush . | . . . Escape Stasis . | . . . Rewire . | . . . Trap . | . . . Miscellaneous . | . . . Route ------- -11/Scrapyard -10/Materials -9/Materials History --------- Turn | Location | Event 17 | -11/Scrapyard | Discovered new exit (range 13) 30 | -11/Scrapyard | Entered Materials 183 | -10/Materials | Discovered new exit (range 14) 334 | -10/Materials | Build established: Mutant 355 | -10/Materials | Entered another Materials area 355 | -9/Materials | Evolved 2 slots: Propulsion x2 560 | -9/Materials | Core integrity fell below 50% 573 | -9/Materials | Core integrity fell below 20% 582 | -9/Materials | Destroyed by S-10 Pest with Light Assault Rifle Last Messages --------------- 00486_ Destroyed Lgt. Ion Engine. 00486_ Destroyed Datajack. 00488_ O-16 Technician destroyed. 00489_ Acquired 18 matter. 00535_ W-16 Scout sends out distress signal. 00541_ Scythe follow-up attack on S-10 Pest. 00544_ Lgt. Armor Plating destroyed. 00546_ Com. Wheel destroyed. 00554_ S-10 Pest destroyed. 00555_ G-34 Mercenary destroyed. 00558_ Ion Engine destroyed. 00561_ S-10 Pest destroyed. 00562_ Scythe follow-up attack on S-10 Pest. 00562_ Destroyed Flight Unit. 00567_ Scythe destroyed. 00570_ R-06 Scavenger collects Ion Engine. 00573_ S-10 Pest destroyed. 00573_ R-06 Scavenger collects Lgt. Ion Engine. 00577_ R-06 Scavenger collects Heat Sink. 00581_ R-06 Scavenger collects Lgt. Assault Rifle. Map ----- +----------------------------------------------------+ | | | | | | | | | | | | | | | | | | | | | | | ????#############???????????????????????########## | | ???# """" """" #???????????????????????# | | ???# """" """" #???????????????????????# """ """ | | ???# """" """" #???????????????????????# """ """ | | ???# #???????????????????????# """ """ | | ???# #???????????????????###?# | | ???#######+##########################T#########+## | | ####### | | | | ## #### | | ??????###########+##### #####+############## # | | ??????????????# ##g #?# #?# # # | | ??????????????#""" ##=gs#?# ### """ # # | | ??????????????#""" ##%* #?# # # """ + + | | ??????????????#""" ##= @#?# """ ### """ # # | | ??????????????# ## #?# """ #?# # # | | ??????????????# ##% %#?# """ #?######### # | | ??????????????#########% r##########???????### # | | ??????????????????????#w ## #?????????# | | ??????????????????????# % ## #?????????#!!// | | ??????????????????????# w## #?????????#!!// | | ??????????????????????# ## #?????????####### | | ??????????????????????# #??????????????????????? | | ??????????????????????# w#??????????????????????? | | ??????????????????????+ #??????????????????????? | | ??????????????????????# #??????????????????????? | | ??????????????????????# #??????????????????????? | | ??????????????????????# #??????????????????????? | | ??????????????????????# ??????????????????????? | | ??????????????????????# #??????????????????????? | | ??????????????????????? ???????????????????????? | | ??????????????????????? ???????????????????????? | | ?????????????????????????????????????????????????? | | ?????????????????????????????????????????????????? | | ?????????????????????????????????????????????????? | | ?????????????????????????????????????????????????? | | ?????????????????????????????????????????????????? | | ?????????????????????????????????????????????????? | | ?????????????????????????????????????????????????? | +----------------------------------------------------+ Best States ------------- Heat Dissipation 28 Energy Generation 10 Energy Capacity 250 Matter Stores 289 Matter Capacity 300 Sight Range 16 Terrain Scan Range 14 Terrain Scan Density 10 Armor Coverage 150 Evasion (%) 40 Item Schematics ----------------- None Robot Schematics ------------------ None Fabricated ------------ Nothing Alien Tech Used ----------------- None Achievements -------------- None Challenges ------------ None Game ------ Seed RagnarokDiametricMatter Manual? 0 Play Time 00:08:36 Cumulative 75.3 hours Start 2021.06.24 @ 08:44:27 End 2021.06.24 @ 08:53:03 Sessions 1 Manual Loads 0 Difficulty Rogue Special Mode None Game No. 72 Rogue 71 Adventurer 1 Explorer 0 Win Type - Total 1 Types 1/0/0/0/0/0/0/0/0 Lore% 33 Gallery% 57 Achievement% 41 Wizard Run 0 Options --------- ASCII 0 Keyboard 0 Movement Mouse Keybinds 0 Fullscreen 0 Font 24/Smallcaps Map View 76x50 Tactical HUD 1 Map Filters NONE Filters NONE Steam X RUN: 82944ab2-e39e-46dd-8bcf-031b7f34520b